bitfinex/quotes_ETHUSD_20230111
["timestamp","ask_amount","ask_price","bid_price","bid_amount"]
[1673413508939,3.3848443,1330.9,1330.7,8.48773886]
[1673413509173,1.68425672,1330.9,1330.7,2.0988694]
[1673413509379,1.68425672,1330.9,1330.7,5.83053004]
[1673413509594,9.19798672,1330.9,1330.7,5.89653004]
[1673413509921,1.68425672,1330.9,1330.7,5.89653004]
[1673413510127,0.5637,1330.9,1330.7,12.10844919]
[1673413510343,1.75015672,1331.0,1330.8,9.44714342]
[1673413510495,1.75015672,1331.0,1330.8,8.09842135]
[1673413510496,1.12055672,1331.0,1330.8,8.09842135]
[1673413510701,1.12055672,1331.0,1330.8,4.98961118]
[1673413510964,1.12055672,1331.0,1330.8,4.92361118]
[1673413511152,44.25376775,1331.1,1330.8,4.92361118]
[1673413511365,14.32776775,1331.1,1330.8,4.92361118]
[1673413511763,14.32776775,1331.1,1330.9,0.34854799]
[1673413512393,12.64575672,1331.1,1330.9,0.34854799]
[1673413513274,0.5636,1331.1,1330.9,0.34854799]
[1673413513442,10.75465672,1331.2,1330.9,20.29955917]
[1673413513643,10.68865672,1331.2,1330.9,28.46816624]
[1673413513857,10.68865672,1331.2,1330.9,20.95445624]
[1673413514098,10.68865672,1331.2,1330.9,16.430924]
[1673413514684,9.5681,1331.2,1330.9,16.430924]
[1673413515016,9.5681,1331.2,1330.9,15.30497346]
[1673413515386,17.08018,1331.2,1330.9,15.30497346]
[1673413515551,10.68865672,1331.2,1331.0,3.79766064]
[1673413515764,10.12515672,1331.2,1331.0,2.1935107]
[1673413515992,34.34355775,1331.2,1330.9,0.4355994]
[1673413516219,34.90705775,1331.2,1330.9,4.16726004]
[1673413516630,34.90705775,1331.2,1330.9,3.81871205]
[1673413517533,34.90705775,1331.2,1330.9,4.23505397]
[1673413517743,2.5,1331.1,1330.9,4.23505397]
[1673413518003,3.62055672,1331.1,1330.9,4.23505397]
[1673413518317,22.53942,1331.0,1330.9,4.23505397]
[1673413518536,11.13357672,1331.1,1330.9,0.41634192]
[1673413518537,11.19957672,1331.1,1330.9,0.41634192]
[1673413518690,7.51314,1331.0,1330.9,0.41634192]
[1673413519367,14.57934713,1331.1,1330.9,0.41634192]
[1673413519573,7.00033713,1331.1,1330.8,7.51423]
[1673413519734,7.00033713,1331.1,1330.8,7.58023]
[1673413520165,14.51297713,1331.1,1330.8,7.58023]
[1673413520425,14.51297713,1331.1,1330.8,0.066]
[1673413520640,14.51297713,1331.1,1330.7,33.55727059]
[1673413520961,11.69679672,1331.1,1330.7,37.35493123]
[1673413521162,16.01639938,1331.1,1330.7,37.35493123]
[1673413521314,11.69679672,1331.1,1330.7,37.35493123]
[1673413521527,16.01599809,1331.1,1330.7,29.84023123]
[1673413521750,27.50233616,1331.1,1330.7,29.84023123]
[1673413521963,23.18313479,1331.1,1330.7,29.84023123]
[1673413522176,20.68313479,1331.1,1330.7,29.86128581]
[1673413522425,9.19679672,1331.1,1330.7,37.37612581]
[1673413523852,9.19679672,1331.1,1330.7,43.02560859]
[1673413524067,9.19679672,1331.1,1330.7,40.229298]
[1673413524300,8.07624,1331.1,1330.8,2.79615941]
[1673413524796,7.51264,1331.1,1330.8,2.79615941]
[1673413525155,7.51264,1331.1,1330.7,47.71543517]
[1673413525315,7.51264,1331.1,1330.8,2.79615941]
[1673413525887,7.51264,1331.1,1330.7,44.91894576]
[1673413526206,7.51264,1331.1,1330.8,2.79618068]
[1673413526578,7.51264,1331.1,1330.8,7.51425]
[1673413526838,7.51264,1331.1,1330.8,10.37643068]
[1673413529882,7.51264,1331.1,1330.8,10.37434722]
[1673413532475,7.51264,1331.1,1330.8,15.14455921]
[1673413533522,0.35581983,1331.0,1330.8,15.14455921]
[1673413533743,10.07864,1331.1,1330.8,15.14455921]
[1673413533965,10.01264,1331.1,1330.8,15.14455921]
[1673413534704,7.51264,1331.1,1330.9,1.86401459]
[1673413534886,7.51264,1331.1,1330.9,3.77330699]
[1673413535101,7.51264,1331.1,1330.9,1.9092924]
[1673413537665,10.01264,1331.1,1330.8,3.98813122]
[1673413537879,7.51264,1331.1,1330.9,1.86401534]
[1673413538032,7.51264,1331.1,1330.8,3.92213122]
[1673413538244,7.51264,1331.1,1330.8,5.78614779]
[1673413538503,7.51264,1331.1,1330.8,5.85214779]
[1673413538818,7.51264,1331.1,1330.9,1.86401657]
[1673413539029,7.51264,1331.1,1330.9,2.44923135]
[1673413539354,7.51264,1331.1,1330.9,0.58521478]
[1673413542717,27.4798843,1331.2,1330.9,8.09881478]
[1673413542718,12.4552443,1331.2,1330.9,8.09881478]
[1673413542910,12.3892443,1331.2,1330.9,15.67841478]
[1673413543711,12.3892443,1331.2,1330.9,23.19212478]
[1673413544604,12.3892443,1331.2,1330.9,24.31807532]
[1673413546158,12.3892443,1331.2,1330.9,16.80436532]
[1673413546357,12.3892443,1331.2,1330.9,24.31807532]
[1673413546561,12.3892443,1331.2,1331.0,1.86398489]
[1673413546899,19.88279775,1331.2,1331.0,1.86398489]
[1673413547109,19.31929775,1331.2,1331.0,2.22809991]
[1673413547326,19.31929775,1331.2,1331.0,0.36411502]
[1673413547657,19.31929775,1331.2,1330.9,1.71116532]
[1673413547960,19.31929775,1331.2,1331.0,1.86397152]
[1673413548588,0.34621172,1331.1,1331.0,1.86397152]
[1673413548756,1.46676844,1331.1,1331.0,1.86397152]
[1673413548967,0.34621172,1331.1,1331.0,1.86397152]
[1673413549176,0.34621172,1331.1,1331.0,2.60785127]
[1673413559824,0.34621172,1331.1,1331.0,1.86397152]
[1673413560534,1.46676844,1331.1,1331.0,1.86397152]
[1673413561321,0.34621172,1331.1,1331.0,1.86397152]
[1673413566460,0.34621172,1331.1,1331.0,2.98992206]
[1673413566633,0.34621172,1331.1,1331.0,1.86397152]
[1673413567870,0.34621172,1331.1,1331.0,2.98992206]
[1673413568214,1.46676844,1331.1,1331.0,1.86397152]
[1673413570317,10.19115672,1331.2,1331.1,1.12055672]
[1673413570526,1.12055672,1331.2,1331.1,2.98452824]
[1673413570789,30.51849564,1331.3,1331.1,9.59652633]
[1673413570790,12.10730842,1331.3,1331.1,9.59652633]
[1673413571012,19.55480842,1331.3,1331.2,1.86397152]
[1673413571176,21.23681945,1331.3,1331.2,1.86397152]
[1673413571373,19.55480842,1331.3,1331.2,1.86397152]
[1673413571833,8.74570842,1331.3,1331.2,1.86397152]
[1673413572962,1.23420842,1331.3,1331.2,1.86397152]
[1673413573156,1.23220842,1331.3,1331.2,1.86397152]
[1673413573376,1.23220842,1331.3,1331.2,2.83022415]
[1673413573377,0.1116517,1331.3,1331.2,2.83022415]
[1673413573574,0.1116517,1331.3,1331.2,15.66475448]
[1673413573842,0.1116517,1331.3,1331.2,15.73075448]
[1673413574044,0.1116517,1331.3,1331.2,15.72992897]
[1673413574212,0.1116517,1331.3,1331.2,11.20849862]
[1673413574432,0.1116517,1331.3,1331.2,15.73203086]
[1673413574644,0.1116517,1331.3,1331.2,14.0046793]
[1673413575065,0.1116517,1331.3,1331.2,11.20849862]
[1673413575695,0.1116517,1331.3,1331.2,9.52011171]
[1673413576629,0.1116517,1331.3,1331.2,12.31629239]
[1673413576990,0.1116517,1331.3,1331.2,9.52011171]
[1673413577815,0.1116517,1331.3,1331.2,8.39498668]
[1673413583956,0.1116517,1331.3,1331.2,9.52011171]
[1673413584098,0.1116517,1331.3,1331.2,6.69598668]
[1673413584826,0.1116517,1331.3,1331.2,9.49216736]
[1673413585088,0.1116517,1331.3,1331.2,6.69598668]
[1673413585607,0.1116517,1331.3,1331.2,9.49216736]
[1673413585807,0.1116517,1331.3,1331.2,6.69598668]
[1673413590636,27.21196918,1331.5,1331.2,6.69598668]
[1673413590808,27.14796918,1331.5,1331.2,4.83201516]
[1673413591022,27.71136918,1331.5,1331.2,4.76601516]
[1673413591472,27.14796918,1331.5,1331.2,4.76601516]
[1673413593433,27.14796918,1331.5,1331.2,7.5612776]
[1673413593650,27.14796918,1331.5,1331.2,4.83201516]
[1673413593854,27.14796918,1331.5,1331.2,4.76601516]
[1673413595493,19.63753918,1331.5,1331.3,1.86337984]
[1673413596375,27.14788918,1331.5,1331.3,1.86337984]
[1673413597038,27.14788918,1331.5,1331.2,8.75240263]
[1673413597262,27.14788918,1331.5,1331.3,1.86342687]
[1673413597643,27.14788918,1331.5,1331.2,8.75240263]
[1673413597888,27.14788918,1331.5,1331.2,5.95714019]
[1673413598267,27.14788918,1331.5,1331.2,4.83201516]
[1673413598478,27.14788918,1331.5,1331.2,5.89114019]
[1673413598699,27.14788918,1331.5,1331.2,5.95714019]
[1673413600597,27.14788918,1331.5,1331.2,13.46914019]
[1673413601474,27.14788918,1331.5,1331.2,17.99267243]
[1673413601680,27.14788918,1331.5,1331.2,20.78793487]
[1673413601842,27.14788918,1331.5,1331.3,1.8634458]
[1673413602276,27.14788918,1331.5,1331.2,16.26440263]
[1673413602622,27.14788918,1331.5,1331.2,17.99267243]
[1673413602833,27.14788918,1331.5,1331.3,4.36340888]
[1673413603026,27.14788918,1331.5,1331.3,5.01513437]
[1673413603231,19.63753918,1331.5,1331.3,5.08113437]
[1673413603415,19.63753918,1331.5,1331.3,2.58113437]
[1673413603772,19.63753918,1331.5,1331.3,2.51513437]
[1673413604255,8.87013918,1331.5,1331.3,6.31279501]
[1673413604467,8.87013918,1331.5,1331.4,1.86328743]
[1673413604680,8.87013918,1331.5,1331.4,3.39710714]
[1673413605009,0.11453918,1331.5,1331.4,3.39710714]
[1673413605222,0.11253918,1331.5,1331.4,3.39710714]
[1673413608453,0.11253918,1331.5,1331.4,1.53381971]
[1673413609248,0.11253918,1331.5,1331.4,3.39716155]
[1673413610559,0.42610195,1331.5,1331.4,3.39716155]
[1673413611869,1.54665867,1331.5,1331.4,3.39716155]
[1673413612188,0.42610195,1331.5,1331.4,3.39716155]
[1673413613349,1.54665867,1331.5,1331.4,3.39716155]
[1673413615094,0.42610195,1331.5,1331.4,3.3934164]
[1673413615310,1.54665867,1331.5,1331.4,3.3934164]
[1673413615706,0.42610195,1331.5,1331.4,3.3934164]
[1673413617216,1.54665867,1331.5,1331.4,3.3934164]
[1673413618246,1.54665867,1331.5,1331.4,1.86334184]
[1673413619388,0.42610195,1331.5,1331.4,1.86334184]
[1673413620801,1.54665867,1331.5,1331.4,1.86334184]
[1673413621590,0.42610195,1331.5,1331.4,1.86334184]
[1673413621842,1.54665867,1331.5,1331.4,1.86334184]
[1673413629454,0.42610195,1331.5,1331.4,2.98846687]
[1673413629826,0.42610195,1331.5,1331.4,5.48846687]
[1673413630040,0.42610195,1331.5,1331.4,5.55446687]
[1673413631633,0.42610195,1331.5,1331.4,7.24285378]
[1673413632451,0.42610195,1331.5,1331.4,5.55446687]
[1673413632662,0.42610195,1331.5,1331.4,8.637392]
[1673413633531,0.42610195,1331.5,1331.4,6.137392]
[1673413633755,0.42610195,1331.5,1331.4,7.82577891]
[1673413634366,0.42610195,1331.5,1331.4,6.137392]
[1673413634818,0.42610195,1331.5,1331.4,3.05446687]
[1673413634975,0.42610195,1331.5,1331.4,1.86334184]
[1673413635351,0.42388278,1331.5,1331.4,15.98540442]
[1673413635657,23.00786455,1331.7,1331.6,1.12055671]
[1673413635975,3.66236455,1331.7,1331.6,1.12055671]
[1673413636289,3.66036455,1331.7,1331.6,1.12055671]
[1673413639436,1.97835352,1331.7,1331.6,1.12055671]
[1673413644426,0.8577968,1331.7,1331.6,2.98366682]
[1673413647023,0.8577968,1331.7,1331.6,1.12055671]
[1673413647548,0.8577968,1331.7,1331.6,2.98367624]
[1673413648333,0.8577968,1331.7,1331.6,1.12055671]
[1673413648963,0.8577968,1331.7,1331.6,2.98364692]
[1673413649169,0.8577968,1331.7,1331.6,1.12055671]
[1673413649546,1.97835352,1331.7,1331.6,1.12055671]
[1673413658547,1.97835352,1331.7,1331.6,5.78790102]
[1673413658829,0.8577968,1331.7,1331.6,15.22665599]
[1673413658966,0.10641751,1331.8,1331.7,1.12299808]
[1673413659179,0.10641751,1331.8,1331.7,2.98599305]
[1673413659507,0.10641751,1331.8,1331.7,17.54229064]
[1673413659696,0.10641751,1331.8,1331.7,17.60829064]
[1673413668917,0.10641751,1331.8,1331.7,10.09910064]
[1673413673748,0.10641751,1331.8,1331.7,4.98665872]
[1673413673966,0.10641751,1331.8,1331.7,6.78355271]
[1673413674121,0.10641751,1331.8,1331.7,6.84955271]
[1673413674330,0.10641751,1331.8,1331.7,4.98665872]
[1673413674540,0.10641751,1331.8,1331.7,4.92065872]
[1673413674789,0.10641751,1331.8,1331.7,6.01040442]
[1673413674960,0.10641751,1331.8,1331.7,6.07640442]
[1673413677530,0.10641751,1331.8,1331.7,7.9393091]
[1673413677706,0.10641751,1331.8,1331.7,6.07640442]
[1673413678106,0.10641751,1331.8,1331.7,7.93930555]
[1673413678388,10.37981202,1331.9,1331.7,7.93930555]
[1673413678521,0.002,1331.9,1331.8,3.79766064]
[1673413678735,10.44206694,1332.0,1331.8,3.79766064]
[1673413678946,17.95162694,1332.0,1331.8,3.79766064]
[1673413679178,1.12055672,1331.9,1331.8,3.79766064]
[1673413679407,1.12055672,1331.9,1331.7,2.27874378]
[1673413679596,16.13669672,1331.9,1331.7,6.01040442]
[1673413679812,16.13869672,1331.9,1331.7,6.07640442]
[1673413680371,23.64676672,1331.9,1331.7,6.07640442]
[1673413680735,16.13869672,1331.9,1331.7,6.07640442]
[1673413681204,8.63062672,1331.9,1331.7,6.07640442]
[1673413681518,1.12255672,1331.9,1331.7,6.07640442]
[1673413681686,8.62868672,1331.9,1331.7,6.07640442]
[1673413681890,8.63068672,1331.9,1331.7,6.07640442]
[1673413682098,7.51013,1331.9,1331.7,6.07640442]
[1673413682519,8.63068672,1331.9,1331.7,6.07640442]
[1673413682729,7.51013,1331.9,1331.7,6.07640442]
[1673413682996,0.002,1331.9,1331.7,8.57640442]
[1673413683150,25.35977694,1332.0,1331.7,6.07640442]
[1673413683680,10.34400694,1332.0,1331.8,3.79766064]
[1673413686472,10.34400694,1332.0,1331.8,3.79487646]
[1673413686770,10.04400694,1332.0,1331.8,3.79487646]
[1673413690974,1.12055672,1331.9,1331.8,3.79487646]
[1673413691191,10.11000694,1332.0,1331.8,4.40223848]
[1673413691361,2.53650694,1332.0,1331.8,4.40223848]
[1673413694666,1.12055672,1331.9,1331.8,4.40223848]
[1673413696549,1.12055672,1331.9,1331.8,6.26507853]
[1673413696706,1.12055672,1331.9,1331.8,6.33107853]
[1673413698619,2.53650694,1331.9,1331.8,6.33107853]
[1673413699883,1.12055672,1331.9,1331.8,6.33107853]
[1673413701542,1.12055672,1331.9,1331.8,13.83970853]
[1673413704828,1.12055672,1331.9,1331.8,6.33107853]
[1673413707033,1.12055672,1331.9,1331.8,13.83970853]
[1673413707807,1.12055672,1331.9,1331.8,13.83728194]
[1673413707983,1.12255672,1331.9,1331.8,13.83528194]
[1673413708193,1.12055672,1331.9,1331.8,13.83728194]
[1673413713145,1.12055672,1331.9,1331.8,14.96257736]
[1673413717488,1.12055672,1331.9,1331.8,22.47120736]
[1673413717710,1.12055672,1331.9,1331.8,29.97983736]
[1673413717939,1.12055672,1331.9,1331.8,22.47120736]
[1673413723759,1.12576159,1331.9,1331.8,22.47120736]
[1673413726638,1.12576606,1331.9,1331.8,22.47120736]
[1673413726880,1.12574421,1331.9,1331.8,22.47120736]
[1673413727095,1.12574428,1331.9,1331.8,22.47120736]
[1673413727846,2.5416945,1332.0,1331.8,22.47120736]
[1673413728056,2.5416945,1332.0,1331.9,5.66050069]
[1673413728267,2.5416945,1332.0,1331.9,5.72650069]
[1673413734989,20.9232427,1332.0,1331.9,0.066]
[1673413735192,15.97822182,1332.0,1331.7,1.19129542]
[1673413735406,15.97822182,1332.0,1331.8,1.8628973]
[1673413735407,1.12580769,1331.9,1331.8,1.8628973]
[1673413735579,2.81451923,1331.9,1331.8,1.8628973]
[1673413735790,18.9489679,1331.9,1331.7,3.86366064]
[1673413736037,1.12585665,1331.8,1331.7,3.79766064]
[1673413736201,8.63448665,1331.8,1331.7,5.66062836]
[1673413736543,8.63448665,1331.8,1331.7,5.72662836]
[1673413736751,1.12585665,1331.8,1331.7,6.85192378]
[1673413737092,1.12585665,1331.8,1331.7,5.72662836]
[1673413737936,10.38863819,1331.9,1331.8,1.12585665]
[1673413738245,11.4408979,1331.9,1331.8,1.12585665]
[1673413738463,9.19678154,1331.9,1331.8,1.12585665]
[1673413739553,21.60077241,1331.9,1331.8,1.12342602]
[1673413739768,18.7926481,1331.9,1331.8,1.12342602]
[1673413739978,33.8087881,1331.9,1331.8,1.12342602]
[1673413740238,26.3007181,1331.9,1331.8,1.12342602]
[1673413740659,33.8087881,1331.9,1331.8,1.12342602]
[1673413741255,29.40038458,1331.9,1331.8,1.12342602]
[1673413741470,21.89231458,1331.9,1331.8,1.12342602]
[1673413742370,26.3046061,1331.9,1331.8,1.12342602]
[1673413742983,27.99239642,1331.9,1331.8,1.12342602]
[1673413743574,23.5801049,1331.9,1331.8,1.12342602]
[1673413744836,21.33598854,1331.9,1331.8,1.12342602]
[1673413745061,21.33298854,1331.9,1331.8,1.12342602]
[1673413747737,22.45781985,1331.9,1331.8,1.12342602]
[1673413747951,21.33298854,1331.9,1331.8,1.12342602]
[1673413748102,22.45781448,1331.9,1331.8,1.12342602]
[1673413749069,22.45769465,1331.9,1331.8,1.12342602]
[1673413750833,20.76990433,1331.9,1331.8,1.12342602]
[1673413751418,8.71723266,1332.0,1331.8,2.98623675]
[1673413751721,8.71723266,1332.0,1331.8,1.12342602]
[1673413751722,23.66711266,1332.0,1331.8,1.12342602]
[1673413751936,25.35490298,1332.0,1331.8,1.12342602]
[1673413754296,17.84694298,1332.0,1331.8,1.12342602]
[1673413754449,19.56555363,1332.0,1331.8,1.12342602]
[1673413757196,10.36981331,1332.0,1331.8,1.12342602]
[1673413757405,8.65120266,1332.0,1331.8,1.12342602]
[1673413758015,16.15923266,1332.0,1331.8,1.12342602]
[1673413758665,17.84702298,1332.0,1331.8,1.12342602]
[1673413759499,16.15923266,1332.0,1331.8,1.12342602]
[1673413760349,17.84702298,1332.0,1331.8,1.12342602]
[1673413760559,2.81249643,1332.0,1331.8,1.12342602]
[1673413760789,10.32015643,1332.0,1331.8,1.12342602]
[1673413760996,8.63236611,1332.0,1331.8,1.12342602]
[1673413761239,10.32015643,1332.0,1331.8,1.12342602]
[1673413761562,2.81249643,1332.0,1331.8,1.12342602]
[1673413762142,1.12470611,1332.0,1331.8,1.12342602]
[1673413762671,8.63233611,1332.0,1331.8,2.83465998]
[1673413763239,10.32012643,1332.0,1331.8,2.83465998]
[1673413763761,10.22012643,1332.0,1331.8,2.83465998]
[1673413764080,8.53221611,1332.0,1331.8,6.63232062]
[1673413764287,8.53221611,1332.0,1331.8,6.69832062]
[1673413764500,10.22000643,1332.0,1331.8,6.69832062]
[1673413764670,8.53221611,1332.0,1331.8,6.69832062]
[1673413765096,1.02470611,1332.0,1331.8,6.69832062]
[1673413766811,24.21030032,1332.0,1331.8,6.69832062]
[1673413767024,26.45441668,1332.0,1331.8,4.98708666]
[1673413767177,26.45441668,1332.0,1331.8,4.92108666]
[1673413767665,18.94690668,1332.0,1331.8,4.92108666]
[1673413768441,26.45441668,1332.0,1331.8,4.92108666]
[1673413768910,2.5,1331.9,1331.8,4.92108666]
[1673413769123,10.00807,1331.9,1331.8,5.41979533]
[1673413769320,10.00807,1331.9,1331.8,5.48579533]
[1673413769510,17.51614,1331.9,1331.8,5.48579533]
[1673413769926,7.50807,1331.9,1331.8,5.48579533]
[1673413771734,9.26129032,1332.0,1331.8,7.34863271]
[1673413771926,9.19529032,1332.0,1331.8,5.48579533]
[1673413772139,16.70321032,1332.0,1331.8,5.48579533]
[1673413772594,9.19529032,1332.0,1331.8,5.48579533]
[1673413772800,1.68779032,1332.0,1331.8,5.48579533]
[1673413773402,1.68779032,1332.0,1331.8,12.99440533]
[1673413773738,2.80893252,1332.0,1331.8,5.48579533]
[1673413774965,1.12486839,1331.9,1331.8,5.48579533]
[1673413775293,3.62486839,1331.9,1331.8,5.48579533]
[1673413775463,4.74411636,1331.9,1331.8,1.18942602]
[1673413775772,19.76025636,1331.9,1331.8,1.12342602]
[1673413775986,17.51614,1331.9,1331.8,1.12342602]
[1673413777030,19.21214,1331.9,1331.8,1.12342602]
[1673413777559,21.45625636,1331.9,1331.8,1.12342602]
[1673413778295,19.21214,1331.9,1331.8,1.12342602]
[1673413778467,36.72464113,1331.9,1331.8,1.12342602]
[1673413779558,36.72717103,1331.9,1331.8,1.12342602]
[1673413779874,32.31773043,1331.9,1331.8,1.12342602]
[1673413780701,32.58190921,1331.9,1331.8,1.12342602]
[1673413780880,30.33779285,1331.9,1331.8,1.12342602]
[1673413781935,30.33979285,1331.9,1331.8,1.12342602]
[1673413782288,30.33779285,1331.9,1331.8,1.12342602]
[1673413782674,32.02499781,1331.9,1331.8,1.12342602]
[1673413784581,34.26911417,1331.9,1331.8,1.12342602]
[1673413784921,32.02499781,1331.9,1331.8,1.12342602]
[1673413785434,34.26911417,1331.9,1331.8,1.12342602]
[1673413790117,18.09221631,1331.9,1331.8,1.12342602]
[1673413792323,16.40501135,1331.9,1331.8,1.12342602]
[1673413794000,18.09221631,1331.9,1331.8,1.12342602]
[1673413796523,18.09221631,1331.9,1331.8,1.12061261]
[1673413798429,16.40501135,1331.9,1331.8,1.12061261]
[1673413800230,3.07607631,1331.9,1331.8,1.12061261]
[1673413800423,28.56086958,1331.9,1331.8,1.12061261]
[1673413800639,27.43617701,1331.9,1331.8,1.12061261]
[1673413801304,19.92810701,1331.9,1331.8,1.12061261]
[1673413801755,19.92583739,1331.9,1331.8,1.12061261]
[1673413802427,10.58214533,1331.9,1331.8,1.12061261]
[1673413802686,3.07407533,1331.9,1331.8,1.12061261]
[1673413804036,1.38687037,1331.9,1331.8,1.12061261]
[1673413808433,8.89494037,1331.9,1331.8,1.12061261]
[1673413809377,1.38687037,1331.9,1331.8,1.12061261]
[1673413816804,8.89494037,1331.9,1331.8,1.12061261]
[1673413817020,10.58214533,1331.9,1331.8,1.12061261]
[1673413817233,3.07407533,1331.9,1331.8,1.12061261]
[1673413817550,1.38687037,1331.9,1331.8,1.12061261]
[1673413817983,1.3648708,1331.9,1331.8,1.12061261]
[1673413819265,1.3648708,1331.9,1331.8,2.98350073]
[1673413819660,3.05207576,1331.9,1331.8,1.12061261]
[1673413819875,1.3648708,1331.9,1331.8,1.12061261]
[1673413820507,1.3648708,1331.9,1331.8,2.98348794]
[1673413821190,1.3648708,1331.9,1331.8,1.12061261]
[1673413821191,3.05207576,1331.9,1331.8,1.12061261]
[1673413822981,3.05207576,1331.9,1331.7,1.12529542]
[1673413823185,1.12496121,1331.8,1331.7,8.44827558]
[1673413823403,1.12496121,1331.8,1331.7,8.51427558]
[1673413824240,1.12496121,1331.8,1331.7,8.47636758]
[1673413824767,3.05207576,1331.9,1331.7,8.47636758]
[1673413824929,3.05207576,1331.9,1331.7,6.61346118]
[1673413826708,3.05207576,1331.9,1331.8,1.86289885]
[1673413828019,1.3648708,1331.9,1331.8,5.66055949]
[1673413828264,1.3648708,1331.9,1331.8,6.85935453]
[1673413836861,1.3648708,1331.9,1331.8,11.35254027]
[1673413837058,0.23990959,1331.9,1331.8,20.54955718]
[1673413837422,0.23990959,1331.9,1331.8,35.00214364]
[1673413837616,1.83851555,1332.1,1331.8,39.48579299]
[1673413837617,2.96347676,1332.1,1331.8,39.48579299]
[1673413837810,2.96347676,1332.1,1331.9,5.66055949]
[1673413838014,2.96347676,1332.1,1332.0,3.79766064]
[1673413839182,2.96347676,1332.1,1332.0,11.30516064]
[1673413839410,2.96347676,1332.1,1332.0,3.86366064]
[1673413839617,2.96347676,1332.1,1332.0,3.79766064]
[1673413839850,2.96347676,1332.1,1332.0,11.30516064]
[1673413840076,2.96347676,1332.1,1332.0,14.15886918]
[1673413840566,2.96347676,1332.1,1332.0,6.65136918]
[1673413841177,1.8394718,1332.1,1332.0,6.65136918]
[1673413841428,1.2762718,1332.1,1332.0,6.65136918]
[1673413850756,1.2762718,1332.1,1332.0,3.86366064]
[1673413850926,1.2762718,1332.1,1332.0,3.79766064]
[1673413853239,0.15131059,1332.1,1332.0,3.79766064]
[1673413853430,1.2762718,1332.1,1332.0,3.79766064]
[1673413854029,0.15131059,1332.1,1332.0,3.79766064]
[1673413854397,0.15131059,1332.1,1332.0,13.64398839]
[1673413854559,0.15131059,1332.1,1332.0,13.70998839]
[1673413855292,0.15131059,1332.1,1332.0,21.21748839]
[1673413855825,0.15131059,1332.1,1332.0,13.70998839]
[1673413857506,0.15131059,1332.1,1332.0,6.20248839]
[1673413860388,0.15131059,1332.1,1332.0,13.70998839]
[1673413860754,0.15131059,1332.1,1332.0,13.70735766]
[1673413864915,0.15131059,1332.1,1332.0,13.70535766]
[1673413865122,0.15131059,1332.1,1332.0,6.19985766]
[1673413865313,0.15131059,1332.1,1332.0,8.06237807]
[1673413865934,0.15131059,1332.1,1332.0,6.19985766]
[1673413867540,0.15131059,1332.1,1332.0,8.06239316]
[1673413867730,0.15131059,1332.1,1332.0,15.56989316]
[1673413869287,0.15131059,1332.1,1332.0,15.56989393]
[1673413869923,1e-08,1332.1,1332.0,15.56989393]
[1673413876159,1e-08,1332.1,1332.0,23.07739393]
[1673413877492,1e-08,1332.1,1332.0,15.56989393]
[1673413878553,1e-08,1332.1,1332.0,16.6936073]
[1673413879645,1e-08,1332.1,1332.0,25.88949421]
[1673413879862,1e-08,1332.1,1332.0,28.68339479]
[1673413880163,1e-08,1332.1,1332.0,26.99500788]
[1673413880360,1e-08,1332.1,1332.0,19.48750788]
[1673413880567,1e-08,1332.1,1332.0,24.2011073]
[1673413880744,1e-08,1332.1,1332.0,28.68339479]
[1673413880955,1e-08,1332.1,1332.0,19.48750788]
[1673413881206,1e-08,1332.1,1332.0,16.6936073]
[1673413882465,1e-08,1332.1,1332.0,18.38199421]
[1673413882994,1e-08,1332.1,1332.0,16.6936073]
[1673413883583,1e-08,1332.1,1332.0,38.45446658]
[1673413883810,1e-08,1332.1,1332.0,43.7295497]
[1673413884379,1e-08,1332.1,1332.0,47.85514097]
[1673413884687,1e-08,1332.1,1332.0,46.72455345]
[1673413889278,1e-08,1332.1,1332.0,47.16462654]
[1673413889722,1e-08,1332.1,1332.0,47.16262654]
[1673413889893,1e-08,1332.1,1332.0,47.16462654]
[1673413890118,6.13130119,1332.3,1332.1,2.5]
[1673413890313,6.06730119,1332.3,1332.2,18.81042064]
[1673413890524,6.06730119,1332.3,1332.2,20.73895691]
[1673413891402,6.06730119,1332.3,1332.2,28.24533691]
[1673413891729,6.06730119,1332.3,1332.2,32.15989958]
[1673413892393,6.06730119,1332.3,1332.2,36.64885646]
[1673413892528,6.06730119,1332.3,1332.2,39.21768421]
[1673413892884,6.06730119,1332.3,1332.2,34.72872733]
[1673413893042,6.06730119,1332.3,1332.2,39.21768421]
[1673413893732,6.06730119,1332.3,1332.2,39.23285274]
[1673413894367,6.06730119,1332.3,1332.2,59.6032434]
[1673413894526,3.08834669,1332.3,1332.2,62.86323642]
[1673413894731,9.23700239,1332.4,1332.2,62.3057414]
[1673413894732,9.23900239,1332.4,1332.2,62.3057414]
[1673413894995,9.23900239,1332.4,1332.3,22.34142236]
[1673413894996,9.17500239,1332.4,1332.3,22.34142236]
[1673413895159,5.20385932,1332.4,1332.3,53.64310234]
[1673413895370,5.20385932,1332.4,1332.3,54.08317543]
[1673413895579,5.20385932,1332.4,1332.3,54.31317543]
[1673413895925,5.20385932,1332.4,1332.3,120.29148853]
[1673413896093,5.20385932,1332.4,1332.3,123.55911446]
[1673413896299,0.48834932,1332.4,1332.3,123.55911446]
[1673413896517,11.07207411,1332.5,1332.4,2.5]
[1673413896772,11.07207411,1332.5,1332.4,68.41506586]
[1673413896773,6.08231411,1332.5,1332.4,68.41506586]
[1673413896930,2.28573388,1332.6,1332.5,6.29766064]
[1673413897148,0.012,1332.7,1332.6,2.5]
[1673413897350,3.97677652,1332.8,1332.7,2.5]
[1673413897611,3.97677652,1332.8,1332.7,48.19647541]
[1673413897936,3.97677652,1332.8,1332.7,44.38846972]
[1673413898153,3.92677652,1332.8,1332.7,41.84729981]
[1673413898297,3.92677652,1332.8,1332.7,37.11911527]
[1673413898683,3.92677652,1332.8,1332.7,44.62267527]
[1673413898838,3.92677652,1332.8,1332.7,37.55918836]
[1673413899034,3.92677652,1332.8,1332.7,29.18433956]
[1673413899250,3.92677652,1332.8,1332.7,27.32286476]
[1673413899500,3.92677652,1332.8,1332.7,29.18391815]
[1673413899696,3.92677652,1332.8,1332.7,29.18391356]
[1673413900083,3.92677652,1332.8,1332.7,36.68747356]
[1673413900302,3.92677652,1332.8,1332.7,19.81930476]
[1673413900514,3.92677652,1332.8,1332.7,3.52284476]
[1673413900748,3.92677652,1332.8,1332.7,3.01677167]
[1673413900921,3.92677652,1332.8,1332.7,29.7651854]
[1673413901142,3.92677652,1332.8,1332.7,29.8311854]
[1673413901777,3.92677652,1332.8,1332.7,34.42296894]
[1673413901985,3.92677652,1332.8,1332.7,41.00131224]
[1673413902601,3.92677652,1332.8,1332.7,38.20990626]
[1673413902815,3.92677652,1332.8,1332.7,41.00135725]
[1673413903276,3.92677652,1332.8,1332.7,38.20990626]
[1673413903813,3.92677652,1332.8,1332.7,41.00127822]
[1673413904127,3.92677652,1332.8,1332.7,38.71130806]
[1673413904337,3.92677652,1332.8,1332.7,41.22807973]
[1673413905026,10.38910164,1332.9,1332.8,3.47613687]
[1673413905241,10.38910164,1332.9,1332.8,58.05561335]
[1673413905242,10.32310164,1332.9,1332.8,58.05561335]